bitfinex/quotes_SOLUSD_20240813
["timestamp","ask_amount","ask_price","bid_price","bid_amount"]
[1723558956299,6.8124,146.79,146.71,39.06]
[1723558956490,6.8121,146.8,146.71,39.06]
[1723558956791,6.8121,146.8,146.67,17.71178]
[1723558956792,6.8114,146.82,146.73,39.06]
[1723558956986,7.4352,146.87,146.75,39.06]
[1723558957214,6.8102,146.84,146.76,1.36238543]
[1723558957403,6.8105,146.83,146.75,39.06]
[1723558957615,7.4352,146.87,146.76,1.3624012]
[1723558957924,7.04301463,146.89,146.78,46.81]
[1723558958115,6.8083,146.88,146.79,1.36200895]
[1723558958280,6.8079,146.89,146.78,46.81]
[1723558958480,6.8083,146.88,146.78,46.81]
[1723558958704,6.8088,146.87,146.78,46.81]
[1723558958908,6.8083,146.88,146.79,45.0]
[1723558959088,24.6568,146.91,146.79,45.0]
[1723558959279,6.8091,146.87,146.78,46.81]
[1723558959703,6.8092,146.86,146.78,46.81]
[1723558960013,6.8087,146.87,146.78,46.81]
[1723558960309,8.51167932,146.86,146.78,46.81]
[1723558960493,6.8088,146.87,146.78,46.81]
[1723558960694,6.8092,146.86,146.78,46.81]
[1723558960891,6.8087,146.87,146.78,46.81]
[1723558961313,6.8092,146.86,146.78,46.81]
[1723558961498,6.8088,146.87,146.78,46.81]
[1723558961995,6.81,146.85,146.76,17.9559]
[1723558962198,6.8093,146.86,146.76,17.9559]
[1723558962383,6.8096,146.85,146.76,17.9559]
[1723558962591,12.40603165,146.89,146.78,46.81]
[1723558962912,6.8091,146.87,146.78,46.81]
[1723558963115,6.93339,146.89,146.78,46.81]
[1723558963405,19.08814165,146.9,146.81,46.81]
[1723558963711,6.8076,146.9,146.81,46.81]
[1723558964121,6.8079,146.89,146.81,46.81]
[1723558964433,6.8074,146.9,146.81,46.81]
[1723558964585,8.51000257,146.89,146.81,46.81]
[1723558965106,1.70223322,146.88,146.81,46.81]
[1723558965314,1.70223322,146.88,146.76,17.9559]
[1723558965315,0.12549,146.89,146.78,46.81]
[1723558965527,6.8092,146.86,146.78,46.81]
[1723558965689,1.82806142,146.89,146.78,46.81]
[1723558965882,6.8092,146.86,146.78,46.81]
[1723558966089,6.8088,146.87,146.78,46.81]
[1723558966413,6.8088,146.87,146.76,17.9559]
[1723558966414,0.12549,146.85,146.76,17.9559]
[1723558966716,1.82839666,146.85,146.76,17.9559]
[1723558966928,20.25098,146.85,146.76,17.9559]
[1723558967111,20.0,146.85,146.76,17.9559]
[1723558967287,6.8084,146.88,146.78,46.81]
[1723558967489,7.3205,146.91,146.81,46.81]
[1723558967788,20.0,146.9,146.81,46.81]
[1723558967991,7.3205,146.91,146.81,46.81]
[1723558967992,6.8078,146.89,146.81,46.81]
[1723558968310,6.8074,146.9,146.81,46.81]
[1723558968525,7.3205,146.91,146.81,46.81]
[1723558968813,6.8079,146.89,146.81,46.81]
[1723558969122,6.8099,146.85,146.78,46.81]
[1723558969409,0.12549,146.88,146.76,17.9559]
[1723558969620,6.8114,146.82,146.76,17.9559]
[1723558969785,0.12549,146.85,146.76,17.9559]
[1723558969993,6.8102,146.84,146.76,17.9559]
[1723558970303,6.8113,146.82,146.76,17.9559]
[1723558971124,6.8106,146.83,146.76,17.9559]
[1723558971412,8.51422863,146.82,146.76,17.9559]
[1723558971608,8.51476296,146.81,146.76,17.9559]
[1723558971808,1.70319902,146.8,146.76,17.9559]
[1723558972323,8.51597916,146.79,146.72,46.81]
[1723558972620,6.8125,146.79,146.71,18.6706]
[1723558972986,17.0268,146.83,146.71,18.6706]
[1723558972987,6.813,146.78,146.71,18.6706]
[1723558973191,1.82906861,146.81,146.71,18.6706]
[1723558973421,0.12549,146.8,146.71,18.6706]
[1723558973628,0.12549,146.79,146.7,7.2178]
[1723558973918,6.8141,146.76,146.7,7.2178]
[1723558974122,22.08031825,146.79,146.7,7.2178]
[1723558974123,0.25098,146.79,146.7,7.2178]
[1723558974299,0.12549,146.77,146.7,7.2178]
[1723558974500,6.93919,146.77,146.7,7.2178]
[1723558974815,20.0,146.79,146.7,7.2178]
[1723558975029,0.12549,146.8,146.7,7.2178]
[1723558975191,6.8138,146.76,146.7,7.2178]
[1723558975391,1.70394912,146.75,146.67,17.7726]
[1723558975921,6.8153,146.73,146.67,17.7726]
[1723558976134,8.51982819,146.72,146.66,7.4536]
[1723558976433,6.8153,146.73,146.66,7.4536]
[1723558976590,6.8162,146.71,146.63,18.3903]
[1723558976792,6.8176,146.68,146.63,18.3903]
[1723558977094,1.70478891,146.67,146.58,72.0447]
[1723558977292,1.70489522,146.66,146.59,8.18833524]
[1723558977493,0.12549,146.7,146.59,8.18833524]
[1723558977692,6.8189,146.65,146.59,8.18833524]
[1723558977896,8.52486169,146.64,146.59,8.18833524]
[1723558978111,0.12549,146.65,146.59,8.18833524]
[1723558978321,20.0,146.69,146.55,46.81]
[1723558978531,52.31986,146.68,146.56,8.18865174]
[1723558978733,0.12549,146.66,146.56,8.18865174]
[1723558978901,0.25098,146.66,146.57,8.18863092]
[1723558979101,0.25098,146.66,146.56,8.18863092]
[1723558979301,20.0,146.67,146.56,8.18863092]
[1723558979517,0.12549,146.67,146.56,8.18863092]
[1723558979730,6.94349,146.67,146.56,8.18863092]
[1723558980031,0.12549,146.67,146.56,8.18863092]
[1723558980241,37.0373,146.74,146.58,46.81]
[1723558980406,46.81,146.75,146.61,46.81]
[1723558980407,1.70455573,146.72,146.61,46.81]
[1723558980598,6.8167,146.7,146.61,46.81]
[1723558980805,6.8173,146.69,146.58,46.81]
[1723558981018,7.2847,146.73,146.58,46.81]
[1723558981220,21.70472727,146.72,146.59,8.19016152]
[1723558981524,0.12549,146.69,146.59,8.19016152]
[1723558981731,1.955776,146.69,146.58,46.81]
[1723558981919,0.25098,146.69,146.58,46.81]
[1723558982232,1.70489211,146.69,146.58,46.81]
[1723558982726,6.94239,146.7,146.58,46.81]
[1723558982914,6.94239,146.7,146.59,45.0]
[1723558983115,20.0,146.69,146.59,45.0]
[1723558983321,1.70473554,146.68,146.59,45.0]
[1723558983522,1.70474733,146.67,146.59,45.0]
[1723558983742,20.0,146.69,146.59,45.0]
[1723558983920,0.12549,146.7,146.59,45.0]
[1723558984121,20.25098,146.7,146.61,39.1]
[1723558984306,41.3847,146.73,146.63,39.1]
[1723558984627,7.2847,146.73,146.63,39.1]
[1723558984816,14.1002,146.73,146.63,39.1]
[1723558985015,6.8157,146.72,146.63,39.1]
[1723558985218,1.7044376,146.71,146.61,39.1]
[1723558985424,1.70473246,146.7,146.59,45.0]
[1723558985733,6.8172,146.69,146.59,45.0]
[1723558986116,7.2847,146.73,146.59,45.0]
[1723558986314,6.817,146.7,146.61,39.1]
[1723558986615,6.8171,146.69,146.6,25.9716]
[1723558986829,6.8167,146.7,146.6,25.9716]
[1723558987613,6.8162,146.71,146.6,25.9716]
[1723558987941,7.06668,146.72,146.61,39.1]
[1723558988110,26.8161,146.71,146.61,39.1]
[1723558988641,20.0,146.71,146.61,39.1]
[1723558988809,14.1,146.73,146.63,39.1]
[1723558989013,7.0414318,146.75,146.65,39.1]
[1723558989233,20.0,146.74,146.65,39.1]
[1723558989872,6.8146,146.75,146.65,39.1]
[1723558990046,20.0,146.74,146.65,39.1]
[1723558990333,8.51925757,146.73,146.65,39.1]
[1723558990829,20.0,146.76,146.65,39.1]
[1723558991214,26.8139,146.76,146.67,39.1]
[1723558991414,7.5169,146.77,146.67,39.1]
[1723558991612,1.70381159,146.76,146.67,39.1]
[1723558991809,14.3302,146.77,146.67,39.1]
[1723558992012,6.813,146.78,146.67,39.1]
[1723558992829,26.8134,146.77,146.67,39.1]
[1723558993241,20.0,146.77,146.67,39.1]
[1723558993740,20.12549,146.78,146.68,24.6116]
[1723558994059,6.8125,146.79,146.69,39.1]
[1723558994225,1.70360403,146.78,146.68,24.6116]
[1723558994613,6.8139,146.76,146.68,24.6116]
[1723558995212,6.813,146.78,146.68,63.7116]
[1723558995415,7.4195,146.81,146.68,63.7116]
[1723558995723,7.4195,146.81,146.72,39.1]
[1723558995939,6.8113,146.82,146.72,39.1]
[1723558996118,7.3853,146.85,146.72,39.1]
[1723558996119,6.8107,146.83,146.72,39.1]
[1723558996327,6.8107,146.83,146.74,39.1]
[1723558996529,6.8111,146.82,146.74,39.1]
[1723558997232,26.8116,146.81,146.74,39.1]
[1723558997544,6.812,146.8,146.72,39.1]
[1723558997744,20.0,146.81,146.69,39.1]
[1723558997924,6.8134,146.77,146.69,39.1]
[1723558998332,6.813,146.78,146.69,39.1]
[1723558999021,6.8126,146.79,146.69,39.1]
[1723558999420,6.8133,146.78,146.69,39.1]
[1723558999617,6.813,146.78,146.69,39.1]
[1723558999842,6.8142,146.76,146.68,24.6116]
[1723559000041,6.8137,146.77,146.68,24.6116]
[1723559000425,1.70376574,146.76,146.68,24.6116]
[1723559000736,6.8154,146.73,146.65,39.1]
[1723559000938,0.12549,146.75,146.65,39.1]
[1723559001422,6.93989,146.75,146.65,39.1]
[1723559001828,0.12549,146.75,146.65,39.1]
[1723559002035,6.93989,146.75,146.65,39.1]
[1723559002352,0.12549,146.75,146.65,39.1]
[1723559002544,20.0,146.76,146.65,39.1]
[1723559002720,0.12549,146.77,146.67,39.1]
[1723559002925,20.0,146.77,146.67,39.1]
[1723559003125,1.70378028,146.76,146.67,39.1]
[1723559003331,6.8146,146.75,146.67,39.1]
[1723559003733,6.8148,146.74,146.65,39.1]
[1723559004047,0.12549,146.76,146.64,24.9771]
[1723559004048,6.8161,146.71,146.64,24.9771]
[1723559004214,1.70441094,146.75,146.64,24.9771]
[1723559004415,6.8175,146.69,146.61,39.1]
[1723559004619,1.7046026,146.68,146.61,39.1]
[1723559004889,6.8168,146.7,146.61,39.1]
[1723559005021,6.8158,146.72,146.63,39.1]
[1723559005528,6.8162,146.71,146.63,39.1]
[1723559005842,6.8153,146.73,146.63,39.1]
[1723559006020,20.0,146.72,146.63,39.1]
[1723559006545,6.8152,146.73,146.65,39.1]
[1723559006748,14.09979,146.74,146.65,39.1]
[1723559007062,14.09999,146.74,146.65,39.1]
[1723559007423,6.8153,146.73,146.65,39.1]
[1723559008051,9.11457452,146.74,146.61,39.1]
[1723559008229,0.12549,146.72,146.61,39.1]
[1723559008553,6.8171,146.69,146.61,39.1]
[1723559008777,20.12549,146.73,146.63,39.1]
[1723559009075,20.0,146.73,146.65,39.1]
[1723559009534,17.1452,146.77,146.65,39.1]
[1723559009739,7.1488,146.78,146.67,39.1]
[1723559010047,6.8138,146.76,146.67,39.1]
[1723559010255,7.1488,146.78,146.67,39.1]
[1723559010661,13.9617,146.78,146.68,70.80369]
[1723559010963,8.51723522,146.77,146.68,70.6782]
[1723559011168,13.9618,146.78,146.68,70.6782]
[1723559011373,20.0,146.77,146.69,1.36296382]
[1723559011564,20.0,146.77,146.69,39.1]
[1723559011741,26.8134,146.77,146.69,39.1]
[1723559011943,20.0,146.77,146.69,39.1]
[1723559012263,6.8123,146.8,146.7,1.36294514]
[1723559012448,13.92345464,146.82,146.71,39.1]
[1723559012645,6.8984,146.82,146.71,39.1]
[1723559012850,6.8119,146.81,146.72,45.0]
[1723559013245,6.8119,146.81,146.71,39.1]
[1723559014140,20.0,146.8,146.71,39.1]
[1723559014668,6.8112,146.82,146.73,39.1]
[1723559014906,20.0,146.81,146.73,39.1]
[1723559015361,6.8128,146.79,146.71,39.1]
[1723559015573,20.0,146.81,146.71,39.1]
[1723559015781,25.219,146.85,146.71,39.1]
[1723559015782,20.0,146.83,146.71,39.1]
[1723559015946,6.8132,146.78,146.71,39.1]
[1723559016159,6.8132,146.78,146.69,39.1]
[1723559016879,17.0302,146.8,146.68,25.6782]
[1723559017088,6.8141,146.76,146.68,25.6782]
[1723559017580,6.8135,146.77,146.68,25.6782]
[1723559018149,6.8129,146.78,146.68,25.6782]
[1723559018350,6.8125,146.79,146.69,39.1]
[1723559018576,26.813,146.78,146.69,39.1]
[1723559018758,6.8134,146.77,146.69,39.1]
[1723559018963,6.8138,146.76,146.69,39.1]
[1723559019570,6.8135,146.77,146.69,39.1]
[1723559020479,7.03686758,146.84,146.73,39.1]
[1723559020649,6.8113,146.82,146.73,39.1]
[1723559021077,6.8115,146.81,146.73,39.1]
[1723559021586,6.8113,146.82,146.73,39.1]
[1723559022176,26.8116,146.81,146.73,39.1]
[1723559022358,20.0,146.81,146.74,45.0]
[1723559022552,6.8115,146.81,146.74,45.0]
[1723559022755,6.812,146.8,146.74,45.0]
[1723559022967,1.7031827,146.82,146.71,39.1]
[1723559023272,21.7031827,146.82,146.72,45.12549]
[1723559023779,6.8116,146.81,146.72,45.12549]
[1723559024479,25.219,146.85,146.75,39.1]
[1723559024654,39.1,146.89,146.76,71.69887447]
[1723559024655,64.4979,146.89,146.76,71.69887447]
[1723559024858,6.81,146.85,146.77,1.36224409]
[1723559025173,6.8101,146.84,146.76,70.3366]
[1723559025470,6.8098,146.85,146.76,70.3366]
[1723559026058,6.8098,146.85,146.77,1.36218253]
[1723559026276,6.8098,146.85,146.76,70.3366]
[1723559026277,7.03900185,146.88,146.8,39.1]
[1723559026465,6.8078,146.89,146.81,46.61277503]
[1723559026666,6.8078,146.89,146.81,45.25098]
[1723559027063,6.8074,146.9,146.81,45.25098]
[1723559027479,6.8078,146.89,146.81,45.25098]
[1723559028161,17.0193,146.9,146.79,0.12549]
[1723559028375,17.0193,146.9,146.79,45.12549]
[1723559028568,18.72177557,146.9,146.79,45.12549]
[1723559028876,20.0,146.89,146.79,45.12549]
[1723559029072,6.8079,146.89,146.8,0.12549]
[1723559029262,6.8075,146.9,146.8,39.47647]
[1723559029466,0.12549,146.9,146.81,45.0]
[1723559030187,17.52066,146.9,146.78,39.22549]
[1723559030408,6.8106,146.83,146.76,64.4366]
[1723559030687,59.1,146.89,146.76,25.3366]
[1723559030688,6.8111,146.82,146.76,25.3366]
[1723559030895,6.8105,146.84,146.76,25.3366]
[1723559031055,6.8107,146.83,146.76,25.3366]
[1723559031258,1.70292285,146.82,146.76,25.3366]
[1723559031500,0.12549,146.86,146.72,39.1]
[1723559031501,0.12549,146.83,146.72,24.1596]
[1723559031783,0.25098,146.83,146.72,24.1596]
[1723559031967,0.12549,146.83,146.73,39.1]
[1723559032167,0.50196,146.83,146.73,39.1]
[1723559032366,6.8106,146.83,146.73,39.1]
[1723559032685,20.0,146.84,146.75,39.1]
[1723559032875,17.6775,146.88,146.77,39.1]
[1723559033185,17.6775,146.88,146.78,0.12549]
[1723559033186,26.8088,146.87,146.78,0.12549]
[1723559033386,6.8093,146.86,146.78,0.12549]
[1723559033555,20.0,146.85,146.78,0.12549]
[1723559033753,20.0,146.85,146.78,45.0]
[1723559033980,20.0,146.85,146.77,39.1]
[1723559034178,20.0,146.85,146.72,63.2596]
[1723559034179,1.70279116,146.84,146.75,39.1]
[1723559034359,6.8101,146.84,146.76,45.25098]
[1723559034796,6.8098,146.85,146.76,45.25098]
[1723559035478,0.12549,146.87,146.76,45.25098]
[1723559035682,45.50196,146.87,146.76,45.25098]
[1723559035872,6.8102,146.84,146.76,45.25098]
[1723559036772,6.8097,146.85,146.76,45.25098]
[1723559036976,6.8073,146.9,146.79,39.1]
[1723559037184,6.8078,146.89,146.81,39.1]
[1723559037963,6.8075,146.9,146.82,45.0]
[1723559038268,20.0,146.89,146.82,45.0]
[1723559038477,6.8074,146.9,146.82,45.0]
[1723559038695,20.0,146.89,146.82,45.0]
[1723559039161,20.0,146.9,146.83,0.12549]
[1723559039487,20.0,146.9,146.83,39.35098]
[1723559039660,26.8069,146.91,146.84,63.24039]
[1723559039858,26.8069,146.91,146.84,63.1149]
[1723559040089,20.0,146.91,146.85,1.3615109]
[1723559040394,0.8414149,146.94,146.84,63.1149]
[1723559040395,6.8074,146.9,146.84,63.1149]
[1723559040690,26.8065,146.92,146.84,63.1149]
[1723559041591,6.8069,146.91,146.84,63.1149]
[1723559041796,0.8414149,146.94,146.85,0.25098]
[1723559042094,6.8067,146.92,146.85,0.25098]
[1723559042269,17.8554149,146.94,146.84,63.1149]
[1723559042678,6.8074,146.9,146.84,63.1149]
[1723559042877,6.8079,146.89,146.84,63.1149]
[1723559043391,6.808,146.89,146.79,56.9605]
[1723559043564,6.808,146.89,146.79,76.9605]
[1723559043884,6.808,146.89,146.8,1.36175393]
[1723559044092,6.8067,146.92,146.81,40.46175865]
[1723559044396,6.8073,146.9,146.83,39.1]
[1723559044607,6.8092,146.86,146.79,76.9605]
[1723559044903,20.0,146.91,146.79,17.8605]
[1723559044904,6.8096,146.85,146.79,17.8605]
[1723559045093,60.80243056,146.91,146.79,17.8605]
[1723559045094,17.0224,146.87,146.79,17.8605]
[1723559045298,20.0,146.86,146.79,17.8605]
[1723559045596,0.12549,146.9,146.79,17.8605]
[1723559045897,20.50196,146.9,146.79,17.8605]
[1723559046078,6.8113,146.82,146.75,17.2611]
[1723559046602,56.1224,146.87,146.75,17.2611]
[1723559046786,6.8097,146.85,146.75,17.2611]
[1723559046982,20.0,146.84,146.75,17.2611]
[1723559047795,20.37647,146.86,146.75,17.2611]
[1723559048303,6.8102,146.84,146.75,17.2611]
[1723559048492,6.8106,146.83,146.76,45.12549]
[1723559048805,20.25098,146.82,146.72,39.1]
[1723559048975,20.25098,146.82,146.71,24.4754]
[1723559048976,0.25098,146.81,146.71,24.4754]
[1723559049178,6.8121,146.8,146.71,24.4754]
[1723559050499,6.8121,146.8,146.72,45.0]
[1723559050885,6.8124,146.79,146.72,45.0]
[1723559051086,6.8121,146.8,146.72,45.0]
[1723559051517,20.12549,146.82,146.72,84.1]
[1723559051518,20.0,146.82,146.72,84.1]
[1723559051672,6.9385,146.85,146.74,39.1]
[1723559052006,6.9385,146.85,146.76,39.1]
[1723559052499,0.12549,146.84,146.74,39.1]
[1723559052709,6.8111,146.82,146.75,45.12549]
[1723559053090,6.8109,146.83,146.75,45.12549]
[1723559053389,0.12549,146.87,146.76,39.1]
[1723559053589,45.50196,146.87,146.77,45.0]
[1723559053909,45.50196,146.87,146.76,39.1]
[1723559054098,6.8109,146.83,146.75,45.12549]
[1723559054777,6.8111,146.82,146.75,45.0]
[1723559055105,0.12549,146.85,146.67,2.72026544]
[1723559055106,40.92864015,146.85,146.72,39.1]
[1723559055301,0.12549,146.83,146.73,65.12549]
[1723559055482,6.93619,146.83,146.73,65.25098]
[1723559055680,6.8111,146.82,146.73,65.25098]
[1723559055883,6.8116,146.81,146.73,45.0]
[1723559056312,0.12549,146.81,146.73,45.0]
[1723559057012,6.93699,146.81,146.73,45.0]
[1723559057380,0.12549,146.81,146.73,45.0]
[1723559058602,0.12549,146.82,146.74,1.36251217]
[1723559058778,20.12549,146.82,146.74,1.36251217]
[1723559058981,20.0,146.82,146.74,40.46251217]
[1723559059182,20.0,146.86,146.76,39.1]
[1723559059480,26.8095,146.86,146.76,39.1]
[1723559059705,26.8095,146.86,146.77,45.0]
[1723559060112,25.43780353,146.88,146.78,1.362234]
[1723559060311,7.03720353,146.88,146.78,39.1]
[1723559060515,6.8088,146.87,146.78,39.1]
[1723559061487,6.8092,146.86,146.78,39.1]
[1723559061992,0.12549,146.84,146.77,18.4806]
[1723559062182,0.12549,146.84,146.72,57.7932]
[1723559062183,0.37647,146.84,146.72,57.7932]
[1723559062386,6.8116,146.81,146.73,20.0]
[1723559062584,6.8114,146.82,146.73,20.0]
[1723559062895,6.8116,146.81,146.73,20.0]
[1723559063097,6.8112,146.82,146.73,20.0]
[1723559063881,1.82867112,146.83,146.72,57.7932]
[1723559064087,6.93719,146.81,146.72,57.7932]
[1723559065503,0.12549,146.81,146.73,45.0]
[1723559066509,6.93609,146.83,146.73,45.0]
[1723559066712,20.0,146.82,146.74,39.22549]
[1723559066921,20.0,146.82,146.74,39.1]
[1723559067211,20.0,146.82,146.75,45.0]
[1723559067581,19.81405627,146.87,146.75,45.0]
[1723559067781,20.0,146.86,146.75,45.0]
[1723559068210,6.8106,146.83,146.75,45.0]
[1723559068918,17.14979,146.85,146.74,39.1]
[1723559069120,6.8118,146.81,146.74,39.1]
[1723559069816,26.8104,146.84,146.76,39.1]
[1723559070107,20.0,146.84,146.76,39.1]
[1723559070314,20.0,146.84,146.75,45.0]
[1723559070315,20.0,146.85,146.74,39.1]
[1723559070488,20.0,146.85,146.75,0.12549]
[1723559070683,1.70293683,146.84,146.75,45.25098]
[1723559070878,6.811,146.82,146.75,45.0]
[1723559071186,6.93579,146.84,146.75,45.0]
[1723559071385,6.93579,146.84,146.76,1.36236322]
[1723559071611,6.93579,146.84,146.75,45.0]
[1723559071913,6.93579,146.84,146.76,39.1]
[1723559072112,20.0,146.85,146.77,46.36230634]
[1723559072320,20.0,146.85,146.78,46.91161309]
[1723559072491,6.8083,146.88,146.78,46.91161309]
[1723559072688,6.8083,146.88,146.79,16.1073]
[1723559072992,6.8076,146.9,146.82,39.1]
[1723559073197,6.8071,146.91,146.83,1.36182152]
[1723559073392,6.8074,146.9,146.82,39.1]
[1723559073592,6.8082,146.89,146.8,39.1]
[1723559073888,6.8082,146.89,146.81,65.0]
[1723559074309,6.809,146.87,146.81,20.0]
[1723559074500,0.12549,146.88,146.79,16.1073]
[1723559074822,6.8097,146.85,146.79,16.1073]
[1723559075123,0.12549,146.89,146.79,16.1073]
[1723559075124,0.12549,146.89,146.8,39.1]
[1723559075419,6.8078,146.89,146.8,59.22549]
[1723559075619,26.8084,146.88,146.8,59.22549]
[1723559075918,20.0,146.88,146.8,59.22549]
[1723559076094,20.0,146.88,146.81,45.0]
[1723559076314,6.8079,146.89,146.81,45.0]
[1723559076510,20.0,146.88,146.81,45.0]
[1723559076997,26.8083,146.88,146.81,45.0]
[1723559078191,20.0,146.88,146.8,59.22549]
[1723559078400,25.83866777,146.92,146.8,20.0]
[1723559078401,0.12549,146.9,146.8,20.0]
[1723559078719,6.8088,146.87,146.8,20.0]
[1723559078887,6.8092,146.86,146.8,20.0]
[1723559079314,6.8092,146.86,146.79,16.1073]
[1723559080015,6.8104,146.84,146.78,6.4494]
[1723559080310,0.12549,146.86,146.78,6.4494]
[1723559080311,6.8107,146.83,146.78,6.4494]
[1723559080512,6.8102,146.84,146.78,6.4494]
[1723559080809,6.93469,146.86,146.78,6.4494]
[1723559080993,20.0,146.85,146.78,37.6694]
[1723559081203,0.12549,146.86,146.78,37.6694]
[1723559081503,6.93489,146.86,146.78,37.6694]
[1723559082907,0.12549,146.86,146.78,37.6694]
[1723559083110,26.93469,146.86,146.78,37.6694]
[1723559083286,6.93469,146.86,146.78,37.6694]
[1723559083697,1.70267359,146.85,146.78,6.4494]
[1723559083888,6.8108,146.83,146.78,6.4494]
[1723559084217,0.12549,146.86,146.78,6.4494]
[1723559084419,6.8102,146.84,146.78,6.4494]
[1723559084625,0.12549,146.81,146.76,15.9075]
[1723559084801,6.8118,146.81,146.76,15.9075]
[1723559085689,6.93659,146.82,146.76,15.9075]
[1723559086022,0.12549,146.82,146.76,15.9075]
[1723559086314,7.06208,146.82,146.76,15.9075]
[1723559086517,0.25098,146.82,146.76,15.9075]
[1723559087019,7.06208,146.82,146.76,15.9075]
[1723559087436,6.8118,146.81,146.76,15.9075]
[1723559087822,0.12549,146.8,146.76,15.9075]
[1723559088016,6.8129,146.78,146.76,15.9075]
[1723559088314,0.12549,146.8,146.72,15.7676]
[1723559088315,6.8126,146.79,146.72,15.7676]
[1723559088621,6.8126,146.79,146.73,20.0]
[1723559088799,8.51598095,146.79,146.73,20.0]
[1723559089213,0.12549,146.78,146.73,20.0]
[1723559089523,0.12549,146.81,146.73,20.0]
[1723559089726,6.0121,146.84,146.74,31.22]
[1723559089912,48.2414,146.88,146.74,31.22]
[1723559089913,6.8097,146.85,146.76,31.22]
[1723559090216,20.0,146.84,146.76,31.22]
[1723559090720,6.812,146.8,146.73,20.0]
[1723559090894,6.8116,146.81,146.73,20.0]
[1723559091094,6.8121,146.8,146.73,20.0]
[1723559091327,0.12549,146.79,146.73,20.0]
[1723559093020,0.12549,146.79,146.72,46.9876]
[1723559093189,0.12549,146.79,146.73,20.0]
[1723559093392,0.12549,146.8,146.73,20.0]
[1723559095297,1.95440501,146.8,146.73,20.0]
[1723559095497,22.5669,146.77,146.7,39.04]
[1723559095702,22.5669,146.77,146.67,242.18681845]
[1723559095703,6.816,146.72,146.65,16.0093]
[1723559095923,6.94089,146.73,146.65,16.0093]
[1723559096111,0.12549,146.73,146.65,16.0093]
[1723559096420,65.37647,146.76,146.66,39.04]
[1723559096421,0.12549,146.75,146.66,39.04]
[1723559097128,6.8147,146.74,146.67,45.12549]
[1723559097294,6.93989,146.75,146.67,0.12549]
[1723559098311,6.93989,146.75,146.67,20.12549]
[1723559098811,1.82939304,146.75,146.67,20.0]
[1723559099013,6.8148,146.74,146.67,20.0]
[1723559099313,6.93999,146.75,146.67,20.0]
[1723559099498,6.8148,146.74,146.67,20.0]
[1723559099824,0.12549,146.72,146.67,20.0]
[1723559100023,0.12549,146.72,146.66,20.0]
[1723559100197,6.93979,146.75,146.66,20.0]
[1723559100522,0.12549,146.75,146.66,20.0]
[1723559100708,0.12549,146.75,146.66,59.04]
[1723559100906,0.12549,146.73,146.66,20.0]
[1723559101227,0.12549,146.7,146.66,20.0]
[1723559101593,0.12549,146.73,146.66,20.0]
[1723559101797,0.25098,146.73,146.66,20.0]
[1723559102096,6.0456,146.8,146.69,39.04]
[1723559102296,2.730298,146.79,146.71,39.04]